bitfinex/quotes_SOLUSD_20250212
["timestamp","ask_amount","ask_price","bid_price","bid_amount"]
[1739338703422,15.67923093,195.78,195.72,0.03]
[1739338703636,16.70073093,195.78,195.72,0.03]
[1739338704053,15.67923093,195.79,195.72,15.70923093]
[1739338704354,15.67923093,195.78,195.72,15.70923093]
[1739338704565,15.67923093,195.78,195.72,0.03]
[1739338704728,15.67923093,195.78,195.72,15.70923093]
[1739338705060,15.67923093,195.79,195.72,15.70923093]
[1739338705259,15.67923093,195.79,195.73,15.67923093]
[1739338705563,16.70083093,195.77,195.72,0.03]
[1739338706855,15.67923093,195.76,195.72,0.03]
[1739338707143,15.67923093,195.74,195.72,0.03]
[1739338707535,15.67923093,195.77,195.72,0.03]
[1739338707865,15.67923093,195.79,195.73,15.67923093]
[1739338708965,15.67923093,195.79,195.72,15.70923093]
[1739338709165,16.70053093,195.81,195.74,15.67923093]
[1739338709368,0.063,195.82,195.77,15.67923093]
[1739338709581,0.063,195.82,195.76,15.67923093]
[1739338709781,0.063,195.82,195.76,20.78743093]
[1739338710663,15.67923093,195.81,195.75,15.67923093]
[1739338710868,15.67923093,195.8,195.74,21.68973093]
[1739338711448,15.67923093,195.81,195.74,21.68973093]
[1739338711875,16.76353093,195.82,195.75,15.67923093]
[1739338712079,0.063,195.82,195.76,15.67923093]
[1739338713353,15.74223093,195.82,195.75,15.67923093]
[1739338713551,15.74223093,195.82,195.74,21.68973093]
[1739338713552,15.67923093,195.81,195.74,21.68973093]
[1739338713754,15.67923093,195.8,195.74,21.68973093]
[1739338713961,15.67923093,195.78,195.74,6.0105]
[1739338714165,0.063,195.82,195.72,0.03]
[1739338714166,15.67923093,195.77,195.72,0.03]
[1739338714369,15.67923093,195.78,195.72,15.70923093]
[1739338714760,15.67923093,195.79,195.72,15.70923093]
[1739338715353,16.70073093,195.79,195.72,15.70923093]
[1739338716269,15.67923093,195.8,195.74,15.67923093]
[1739338716472,16.76353093,195.82,195.75,15.67923093]
[1739338717369,0.063,195.82,195.76,15.67923093]
[1739338717576,0.063,195.82,195.77,15.67923093]
[1739338717945,0.063,195.82,195.79,15.67923093]
[1739338718868,0.063,195.82,195.8,15.67923093]
[1739338719484,0.063,195.82,195.79,22.26233093]
[1739338720575,0.063,195.82,195.79,6.5831]
[1739338721570,0.063,195.82,195.77,15.67923093]
[1739338721773,0.063,195.82,195.76,17.18863093]
[1739338722666,15.67923093,195.81,195.76,1.5094]
[1739338722866,15.67923093,195.8,195.74,15.67923093]
[1739338723083,15.67923093,195.78,195.76,0.03]
[1739338723255,0.063,195.82,195.76,0.03]
[1739338723256,15.67923093,195.77,195.76,0.03]
[1739338723455,16.70083093,195.77,195.76,0.03]
[1739338724278,16.70073093,195.79,195.76,0.03]
[1739338724463,1.0215,195.79,195.76,0.03]
[1739338724969,16.70073093,195.79,195.76,0.03]
[1739338725370,15.67923093,195.78,195.76,0.03]
[1739338725679,16.70073093,195.78,195.76,0.03]
[1739338725854,15.67923093,195.77,195.76,0.03]
[1739338727676,16.70083093,195.77,195.76,0.03]
[1739338728879,16.70073093,195.79,195.76,0.03]
[1739338729064,15.67923093,195.77,195.76,0.03]
[1739338729765,16.70083093,195.77,195.76,0.03]
[1739338731369,1.0215,195.79,195.76,0.03]
[1739338731975,15.67923093,195.81,195.76,0.03]
[1739338732166,1.0214,195.81,195.76,0.03]
[1739338732877,1.0214,195.81,195.76,15.70923093]
[1739338733455,15.74223093,195.82,195.76,15.70923093]
[1739338733679,1.0843,195.82,195.76,15.70923093]
[1739338734176,1.0843,195.82,195.76,0.03]
[1739338734177,15.67923093,195.81,195.76,0.03]
[1739338735699,1.0214,195.8,195.76,0.03]
[1739338737377,16.76353093,195.82,195.76,0.03]
[1739338737984,16.76353093,195.82,195.76,15.70923093]
[1739338738191,0.063,195.82,195.78,15.67923093]
[1739338738359,0.063,195.82,195.79,15.67923093]
[1739338739570,0.063,195.82,195.8,15.67923093]
[1739338739878,0.063,195.82,195.81,15.67923093]
[1739338741586,0.063,195.82,195.81,22.38143093]
[1739338741777,0.063,195.82,195.81,17.27453093]
[1739338743690,0.063,195.82,195.79,15.67923093]
[1739338744589,0.063,195.82,195.78,22.25503093]
[1739338744882,0.063,195.82,195.79,15.67923093]
[1739338745387,0.063,195.82,195.8,15.67923093]
[1739338745768,0.063,195.82,195.79,15.67923093]
[1739338746385,0.063,195.82,195.8,15.67923093]
[1739338746769,0.063,195.82,195.81,0.03]
[1739338747373,15.74223093,195.82,195.81,0.03]
[1739338748097,16.76353093,195.82,195.81,0.03]
[1739338749386,1.0843,195.82,195.81,0.03]
[1739338749582,0.063,195.82,195.81,0.03]
[1739338750684,15.74223093,195.82,195.81,0.03]
[1739338751789,16.76353093,195.82,195.81,0.03]
[1739338754384,1.0843,195.82,195.81,0.03]
[1739338754583,16.76353093,195.82,195.81,0.03]
[1739338758306,0.063,195.82,195.81,0.03]
[1739338760603,15.74223093,195.82,195.81,0.03]
[1739338762501,16.76353093,195.82,195.81,0.03]
[1739338763205,1.0843,195.82,195.81,0.03]
[1739338763511,16.76353093,195.82,195.81,0.03]
[1739338765807,0.063,195.82,195.81,0.03]
[1739338768804,1.0843,195.82,195.81,0.03]
[1739338769909,0.063,195.82,195.81,0.03]
[1739338770690,0.063,195.82,195.81,15.70923093]
[1739338771802,0.063,195.82,195.81,35.64317946]
[1739338771986,0.063,195.82,195.81,40.75007946]
[1739338773991,0.063,195.82,195.81,22.23133093]
[1739338777487,0.063,195.82,195.81,27.33823093]
[1739338778630,0.063,195.82,195.81,41.12654946]
[1739338778800,0.063,195.82,195.81,156.12654946]
[1739338779000,0.063,195.82,195.81,157.12654946]
[1739338779220,0.063,195.82,195.81,156.12654946]
[1739338780292,0.063,195.82,195.81,157.43598213]
[1739338781112,2.5517,195.95,195.84,20.0]
[1739338781311,15.67923093,195.95,195.88,15.67923093]
[1739338781497,15.67923093,195.94,195.87,15.67923093]
[1739338781702,15.67923093,195.93,195.87,15.67923093]
[1739338782591,1.0208,195.92,195.87,15.67923093]
[1739338783143,16.70003093,195.92,195.86,15.67923093]
[1739338783427,16.70003093,195.92,195.85,15.67923093]
[1739338785825,15.67923093,195.91,195.84,35.67923093]
[1739338786023,1.0208,195.92,195.84,35.67923093]
[1739338786230,15.67923093,195.9,195.83,15.67923093]
[1739338787330,15.67923093,195.88,195.82,15.67923093]
[1739338787930,1.021,195.87,195.81,15.70923093]
[1739338788520,16.70023093,195.87,195.81,0.03]
[1739338788725,1.021,195.87,195.81,15.70923093]
[1739338788933,1.021,195.87,195.82,15.67923093]
[1739338792347,1.021,195.87,195.81,15.70923093]
[1739338793335,1.021,195.87,195.82,15.67923093]
[1739338793545,1.084,195.87,195.82,15.67923093]
[1739338794410,0.063,195.87,195.83,15.67923093]
[1739338794719,0.063,195.87,195.84,15.67923093]
[1739338795307,0.063,195.87,195.82,15.67923093]
[1739338796543,15.74223093,195.87,195.81,15.70923093]
[1739338796713,15.67923093,195.86,195.81,0.03]
[1739338797048,15.67923093,195.83,195.81,0.03]
[1739338797336,1.0213,195.82,195.81,0.03]
[1739338798234,16.70033093,195.86,195.81,0.03]
[1739338800210,1.0211,195.86,195.81,0.03]
[1739338803114,16.70033093,195.86,195.81,0.03]
[1739338803314,15.67923093,195.84,195.81,0.03]
[1739338803934,15.67923093,195.85,195.81,0.03]
[1739338805115,1.0212,195.84,195.81,0.03]
[1739338806344,1.0841,195.85,195.81,0.03]
[1739338807644,0.063,195.85,195.81,0.03]
[1739338809544,15.74223093,195.85,195.81,0.03]
[1739338810946,0.063,195.85,195.81,0.03]
[1739338811540,1.0841,195.85,195.81,0.03]
[1739338811742,1.0841,195.85,195.81,15.70923093]
[1739338812132,1.0841,195.85,195.81,0.03]
[1739338812334,15.67923093,195.84,195.81,0.03]
[1739338812530,1.0841,195.85,195.81,0.03]
[1739338814336,1.0841,195.85,195.81,15.70923093]
[1739338814536,0.063,195.85,195.82,15.67923093]
[1739338814853,0.063,195.85,195.83,15.67923093]
[1739338815530,0.063,195.85,195.82,15.67923093]
[1739338816063,0.063,195.85,195.81,0.03]
[1739338816248,15.67923093,195.84,195.81,0.03]
[1739338817657,1.0212,195.83,195.81,0.03]
[1739338819255,0.063,195.85,195.81,0.03]
[1739338819567,0.063,195.85,195.82,10.03274166]
[1739338819729,0.063,195.85,195.82,15.66862524]
[1739338820144,0.063,195.85,195.81,15.69862524]
[1739338821651,0.063,195.85,195.83,15.66862524]
[1739338822553,0.063,195.85,195.82,15.66862524]
[1739338824066,0.063,195.85,195.81,0.03]
[1739338824645,15.66862524,195.84,195.81,0.03]
[1739338825358,1.0212,195.84,195.81,0.03]
[1739338827462,1.0841,195.85,195.81,0.03]
[1739338829463,0.063,195.84,195.81,0.03]
[1739338831758,1.01237912,195.85,195.81,0.03]
[1739338833370,15.66862524,195.86,195.81,0.03]
[1739338833371,1.0841,195.87,195.81,15.69862524]
[1739338833565,1.0841,195.87,195.83,15.66862524]
[1739338834460,0.063,195.87,195.85,15.66862524]
[1739338835548,0.063,195.87,195.84,15.66862524]
[1739338837773,0.063,195.87,195.86,15.66862524]
[1739338839671,0.063,195.87,195.84,15.66862524]
[1739338841770,0.063,195.87,195.84,10.02613974]
[1739338842074,0.063,195.87,195.85,10.02613974]
[1739338842474,0.063,195.87,195.86,10.02613974]
[1739338844457,0.063,195.87,195.86,15.13173974]
[1739338844669,0.063,195.87,195.86,10.02613974]
[1739338846265,0.063,195.87,195.85,10.02613974]
[1739338846682,0.063,195.87,195.84,10.02613974]
[1739338847665,0.063,195.87,195.84,35.66595607]
[1739338847964,0.063,195.87,195.85,15.66595607]
[1739338848485,0.063,195.87,195.86,15.66595607]
[1739338852787,0.063,195.87,195.85,15.66595607]
[1739338852987,0.063,195.87,195.84,15.66595607]
[1739338853994,0.063,195.87,195.85,0.03]
[1739338855894,0.063,195.87,195.85,15.69595607]
[1739338856186,0.063,195.87,195.86,15.66595607]
[1739338857566,0.063,195.87,195.85,15.69595607]
[1739338858390,0.063,195.87,195.85,0.03]
[1739338861481,15.72895607,195.87,195.85,0.03]
[1739338862193,1.0211,195.86,195.85,0.03]
[1739338862892,0.063,195.87,195.85,0.03]
[1739338863687,1.084,195.87,195.85,0.03]
[1739338865478,15.66595607,195.86,195.85,0.03]
[1739338868096,16.68705607,195.86,195.85,0.03]
[1739338868598,1.0211,195.86,195.85,0.03]
[1739338869878,1.084,195.87,195.85,0.03]
[1739338870303,11.11280266,195.87,195.85,0.03]
[1739338872791,0.063,195.87,195.85,0.03]
[1739338873992,10.09180266,195.87,195.85,0.03]
[1739338874203,10.02880266,195.86,195.85,0.03]
[1739338874782,10.09180266,195.87,195.85,0.03]
[1739338874983,1.0211,195.86,195.85,0.03]
[1739338876198,10.09180266,195.87,195.85,0.03]
[1739338876500,10.02880266,195.86,195.85,0.03]
[1739338877191,10.09180266,195.87,195.85,0.03]
[1739338877392,1.0211,195.86,195.85,0.03]
[1739338878327,0.063,195.87,195.85,0.03]
[1739338878607,0.063,195.87,195.85,10.05880266]
[1739338880020,0.063,195.87,195.85,0.03]
[1739338880385,10.09180266,195.87,195.85,0.03]
[1739338881086,10.02880266,195.86,195.85,0.03]
[1739338882582,1.0211,195.86,195.85,0.03]
[1739338883599,0.063,195.87,195.85,0.03]
[1739338892291,0.063,195.87,195.86,15.66936479]
[1739338896591,0.063,195.87,195.86,20.77496479]
[1739338900917,0.063,195.87,195.86,15.66936479]
[1739338901118,0.063,195.87,195.85,15.69936479]
[1739338905414,0.063,195.87,195.85,0.03]
[1739338908433,10.02660632,195.86,195.85,0.03]
[1739338909220,11.04770632,195.86,195.85,0.03]
[1739338910725,1.0211,195.86,195.85,0.03]
[1739338911728,11.04770632,195.86,195.85,0.03]
[1739338912927,1.0211,195.86,195.85,0.03]
[1739338913729,1.0841,195.86,195.85,0.03]
[1739338914233,11.11070632,195.86,195.85,0.03]
[1739338916524,1.0841,195.86,195.85,0.03]
[1739338917942,11.11070632,195.86,195.85,0.03]
[1739338918108,24.89902485,195.86,195.85,0.0001]
[1739338919324,20.0,195.83,195.76,0.03]
[1739338919530,10.02660632,195.79,195.76,0.03]
[1739338919929,10.02660632,195.8,195.76,0.03]
[1739338920333,1.0215,195.79,195.76,0.03]
[1739338923429,11.04810632,195.79,195.76,0.03]
[1739338923744,1.0215,195.79,195.76,0.03]
[1739338924129,10.02660632,195.8,195.76,0.03]
[1739338924345,10.02660632,195.81,195.76,0.03]
[1739338924864,10.02660632,195.8,195.76,0.03]
[1739338926346,1.0215,195.79,195.76,0.03]
[1739338928966,1.0214,195.8,195.76,0.03]
[1739338931059,11.04800632,195.8,195.76,0.03]
[1739338932973,10.02660632,195.77,195.76,0.03]
[1739338933342,10.02660632,195.78,195.76,0.03]
[1739338934366,11.04800632,195.8,195.76,0.03]
[1739338935870,1.0214,195.8,195.76,0.03]
[1739338937574,10.02660632,195.82,195.76,0.03]
[1739338937754,1.0213,195.81,195.76,0.03]
[1739338937958,11.04790632,195.81,195.76,0.03]
[1739338946186,1.0213,195.81,195.76,0.03]
[1739338946556,13.60130632,195.81,195.76,0.03]
[1739338946974,3.5747,195.81,195.76,0.03]
[1739338947685,3.5747,195.81,195.76,10.05660632]
[1739338948000,1.0213,195.81,195.76,10.05660632]
[1739338949968,1.0213,195.82,195.76,10.05660632]
[1739338951387,10.02660632,195.82,195.76,10.05660632]
[1739338952400,1.0213,195.81,195.76,0.03]
[1739338953784,1.0213,195.81,195.76,10.05660632]
[1739338954791,10.02660632,195.83,195.76,10.05660632]
[1739338956091,1.0213,195.82,195.76,10.05660632]
[1739338957475,1.0213,195.82,195.76,0.03]
[1739338958371,1.0213,195.82,195.76,10.05660632]
[1739338960493,1.0213,195.82,195.77,10.02660632]
[1739338960791,1.0212,195.83,195.77,10.02660632]
[1739338961500,11.04780632,195.83,195.76,10.05660632]
[1739338961872,1.0212,195.83,195.78,10.02660632]
[1739338962695,10.08960632,195.85,195.78,10.02660632]
[1739338962876,11.04780632,195.84,195.78,10.02660632]
[1739338963068,1.0212,195.84,195.78,10.02660632]
[1739338963273,1.0212,195.84,195.79,10.02660632]
[1739338963487,1.0212,195.84,195.8,10.02660632]
[1739338963792,0.063,195.85,195.83,10.02660632]
[1739338964311,1.0841,195.85,195.81,17.67460632]
[1739338964486,11.11070632,195.85,195.79,10.02660632]
[1739338964680,11.11070632,195.85,195.78,10.02660632]
[1739338965586,11.11070632,195.85,195.79,10.02660632]
[1739338965901,1.0841,195.85,195.79,10.02660632]
[1739338966474,1.0841,195.85,195.8,10.02660632]
[1739338966679,1.0841,195.85,195.81,10.02660632]
[1739338966908,0.063,195.85,195.82,10.02660632]
[1739338967498,0.063,195.85,195.83,10.02660632]
[1739338967698,0.063,195.85,195.84,10.02660632]
[1739338970914,0.063,195.85,195.81,10.02660632]
[1739338971206,0.063,195.85,195.8,10.02660632]
[1739338972483,1.0841,195.85,195.8,10.02660632]
[1739338973304,1.0841,195.85,195.78,195.9]
[1739338973305,1.0841,195.85,195.81,10.02660632]
[1739338973494,10.02660632,195.83,195.77,17.83640632]
[1739338973679,10.02660632,195.82,195.77,7.8098]
[1739338973885,10.02660632,195.82,195.76,10.05660632]
[1739338975223,1.0213,195.81,195.76,0.03]
[1739338975385,10.02660632,195.79,195.76,0.03]
[1739338975585,11.04790632,195.81,195.76,0.03]
[1739338975786,1.0213,195.81,195.76,10.05660632]
[1739338976311,1.0213,195.81,195.76,0.03]
[1739338976804,10.02660632,195.79,195.76,0.03]
[1739338976988,1.0216,195.77,195.76,0.03]
[1739338977187,11.04820632,195.77,195.76,0.03]
[1739338978125,11.04820632,195.77,195.72,0.03]
[1739338978126,13.60220632,195.77,195.72,0.03]
[1739338978418,10.02660632,195.73,195.72,0.03]
[1739338979211,11.04840632,195.73,195.72,0.03]
[1739338979391,11.04840632,195.73,195.72,0.0001]
[1739338980486,1.0218,195.73,195.72,0.0001]
[1739338981100,11.04840632,195.73,195.72,0.0001]
[1739338982205,10.02660632,195.75,195.72,0.0001]
[1739338982591,10.02660632,195.74,195.72,0.0001]
[1739338983285,11.04840632,195.74,195.72,0.0001]
[1739338983706,11.04810632,195.78,195.72,0.0001]
[1739338984024,1.0215,195.78,195.72,10.02670632]
[1739338984200,10.02660632,195.8,195.74,10.02660632]
[1739338984403,11.04780632,195.83,195.77,10.02660632]
[1739338984913,11.04780632,195.83,195.76,10.02660632]
[1739338986227,11.04780632,195.83,195.77,10.02660632]
[1739338987120,11.04780632,195.83,195.76,10.02660632]
[1739338987636,10.02660632,195.82,195.76,10.02660632]
[1739338987804,10.02660632,195.81,195.75,10.02660632]
[1739338988003,10.02660632,195.81,195.74,10.02660632]
[1739338988803,10.02660632,195.79,195.73,10.02660632]
[1739338988998,10.02660632,195.79,195.72,17.61910632]
[1739338989638,10.02660632,195.79,195.73,10.02660632]
[1739338989818,1.0215,195.78,195.73,10.02660632]
[1739338990733,1.0215,195.78,195.72,17.61910632]
[1739338991701,1.0215,195.79,195.74,10.02660632]
[1739338991902,10.02660632,195.81,195.75,10.02660632]
[1739338992528,10.02660632,195.81,195.74,10.02660632]
[1739338993433,11.04800632,195.81,195.74,10.02660632]
[1739338994531,1.0214,195.81,195.76,10.02660632]
[1739338994824,1.0214,195.81,195.77,10.02660632]
[1739338995415,1.0213,195.82,195.76,10.02660632]
[1739338995618,11.04790632,195.82,195.75,10.02660632]
[1739338996401,1.0213,195.82,195.76,10.02660632]
[1739338996827,0.063,195.81,195.76,10.02660632]
[1739338997924,10.02660632,195.8,195.73,125.02660632]
[1739338998126,10.02660632,195.8,195.73,10.02660632]
[1739338998624,10.02660632,195.8,195.74,10.02660632]
[1739338998934,0.063,195.81,195.75,10.02660632]
[1739338999920,1.0843,195.81,195.76,10.02660632]
[1739339001230,1.0843,195.81,195.75,10.02660632]
[1739339001421,11.11090632,195.81,195.74,10.02660632]
[1739339003830,11.11090632,195.81,195.72,133.52114853]
[1739339003831,10.02660632,195.8,195.73,10.02660632]
[1739339004207,10.02660632,195.79,195.73,10.02660632]
[1739339005018,10.02660632,195.8,195.74,10.02660632]
[1739339005612,10.08960632,195.81,195.74,10.02660632]
[1739339006724,1.0214,195.8,195.74,10.02660632]
[1739339006914,1.0214,195.8,195.76,10.02660632]
[1739339007538,1.0214,195.8,195.75,10.02660632]
[1739339008527,1.0214,195.8,195.76,10.02660632]
[1739339008723,0.063,195.81,195.76,10.02660632]
[1739339010312,0.063,195.81,195.77,10.02660632]
[1739339011058,10.02660632,195.8,195.75,115.0]
[1739339011543,10.08960632,195.81,195.75,115.0]
[1739339011731,10.02660632,195.8,195.75,115.0]
[1739339013940,11.04810632,195.79,195.75,115.0]
[1739339014123,10.02660632,195.77,195.75,115.0]
[1739339014323,10.02660632,195.77,195.72,0.0001]
[1739339014521,1.0215,195.79,195.72,30.02670632]
[1739339014522,11.04810632,195.79,195.72,30.02670632]
[1739339014742,1.0215,195.79,195.73,10.02660632]
[1739339014938,1.0215,195.79,195.75,10.02660632]
[1739339015846,10.08960632,195.81,195.75,10.02660632]
[1739339016046,1.0214,195.8,195.74,10.02660632]
[1739339016344,0.063,195.81,195.77,10.02660632]
[1739339016544,0.063,195.81,195.8,10.02660632]
[1739339016930,0.063,195.81,195.79,10.02660632]
[1739339017450,0.063,195.81,195.8,10.02660632]
[1739339021547,0.063,195.81,195.79,10.02660632]
[1739339022437,0.063,195.81,195.8,10.02660632]
[1739339024534,0.063,195.81,195.8,15.13380632]
[1739339024935,0.063,195.81,195.8,10.02660632]
[1739339031958,0.063,195.81,195.79,115.0]
[1739339032462,10.08960632,195.81,195.79,115.0]
[1739339033256,10.02660632,195.8,195.73,10.02660632]
[1739339033437,0.063,195.81,195.72,0.0001]
[1739339033438,10.02660632,195.78,195.72,0.0001]
[1739339033639,10.02660632,195.77,195.72,0.0001]
[1739339033945,1.0216,195.76,195.72,0.0001]
[1739339035162,11.04820632,195.78,195.72,10.02670632]
[1739339042963,10.02660632,195.77,195.72,0.0001]
[1739339044050,10.02660632,195.76,195.72,0.0001]
[1739339044449,11.04820632,195.78,195.72,10.02670632]
[1739339044867,10.02660632,195.77,195.72,0.0001]
[1739339045258,1.0216,195.76,195.72,0.0001]
[1739339048555,11.04820632,195.76,195.72,0.0001]
[1739339048757,10.02660632,195.73,195.72,0.0001]
[1739339050668,11.04840632,195.73,195.72,0.0001]
[1739339051552,1.0218,195.73,195.72,0.0001]
[1739339052654,11.04840632,195.73,195.72,0.0001]
[1739339052854,10.02660632,195.75,195.72,0.0001]
[1739339053054,11.04830632,195.75,195.72,0.0001]
[1739339055965,10.02660632,195.74,195.72,0.0001]
[1739339056371,1.0217,195.75,195.72,0.0001]
[1739339056372,11.04830632,195.75,195.72,0.0001]
[1739339057257,10.02660632,195.74,195.72,0.0001]
[1739339057658,1.0218,195.73,195.72,0.0001]
[1739339058180,11.04840632,195.73,195.72,0.0001]
[1739339062063,1.0218,195.73,195.72,0.0001]
[1739339063284,11.04830632,195.75,195.72,0.0001]
[1739339065780,10.02660632,195.74,195.72,0.0001]
[1739339066394,10.02660632,195.75,195.72,0.0001]
[1739339066563,1.0218,195.74,195.72,0.0001]
[1739339067289,11.04820632,195.76,195.72,0.0001]
[1739339072293,1.0216,195.76,195.73,10.02660632]
[1739339072469,1.0216,195.76,195.72,0.0001]
[1739339072470,1.0845,195.78,195.74,10.02660632]
[1739339072670,1.0845,195.78,195.75,10.02660632]
[1739339073477,0.063,195.78,195.74,10.02660632]
[1739339073678,0.063,195.78,195.73,10.02660632]
[1739339074779,1.0845,195.78,195.73,10.02660632]
[1739339076017,0.063,195.78,195.74,10.02660632]
[1739339076187,0.063,195.78,195.76,10.02660632]
[1739339076386,0.063,195.78,195.74,10.02660632]
[1739339079202,0.063,195.78,195.75,10.02660632]
[1739339081210,0.063,195.78,195.74,10.02660632]
[1739339083397,0.063,195.78,195.75,10.02660632]
[1739339083592,0.063,195.78,195.76,10.02660632]
[1739339085210,0.063,195.78,195.74,10.02660632]
[1739339085387,0.063,195.78,195.77,30.02660632]
[1739339087408,0.063,195.78,195.77,20.0]
[1739339088602,0.063,195.78,195.77,30.02660632]
[1739339089915,0.063,195.78,195.77,48.54645485]
[1739339092195,0.063,195.78,195.77,30.02660632]
[1739339092402,0.063,195.78,195.74,10.02660632]
[1739339094010,0.063,195.78,195.75,10.02660632]
[1739339094216,0.063,195.78,195.76,10.02660632]
[1739339094626,0.063,195.78,195.77,10.02660632]
[1739339095003,0.063,195.78,195.76,10.02660632]
[1739339096206,0.063,195.78,195.77,10.02660632]
[1739339096610,0.063,195.78,195.76,10.02660632]
[1739339098524,0.063,195.78,195.75,10.02660632]
[1739339099023,0.063,195.78,195.74,125.02660632]
[1739339099217,10.02660632,195.77,195.72,0.0001]
[1739339100832,1.0216,195.76,195.72,0.0001]
[1739339102632,0.063,195.78,195.72,10.02670632]
[1739339103432,0.063,195.78,195.74,10.02660632]
[1739339104012,0.063,195.78,195.73,10.02660632]
[1739339104733,0.063,195.78,195.74,10.02660632]
[1739339108513,0.063,195.78,195.75,10.02660632]
[1739339109339,0.063,195.78,195.77,10.02660632]
[1739339117024,0.063,195.78,195.74,209.31184853]
[1739339117025,0.063,195.78,195.75,10.02660632]
[1739339117720,0.063,195.78,195.76,10.02660632]
[1739339118443,0.063,195.78,195.74,205.92660632]
[1739339118623,0.063,195.78,195.74,80.9]
[1739339118821,11.11110632,195.78,195.72,0.0001]
[1739339119024,10.02660632,195.76,195.72,0.0001]
[1739339119524,10.02660632,195.77,195.72,0.0001]
[1739339119736,11.11110632,195.78,195.72,0.0001]
[1739339121330,0.063,195.78,195.74,10.02660632]
[1739339121514,0.063,195.78,195.76,10.02660632]
[1739339122018,0.063,195.78,195.77,10.02660632]
[1739339123226,0.063,195.78,195.77,138.68943485]
[1739339123431,0.063,195.78,195.77,144.04841485]
[1739339123925,0.063,195.78,195.77,145.04841485]
[1739339124433,0.063,195.78,195.77,225.94841485]
[1739339125349,0.063,195.81,195.77,225.94841485]
[1739339125350,0.063,195.81,195.8,41.73470853]
[1739339125544,0.063,195.85,195.84,20.0]
[1739339128129,0.063,195.85,195.84,30.02660632]
[1739339131157,0.063,195.85,195.84,110.92660632]
[1739339136660,0.063,195.85,195.84,129.69563485]
[1739339137051,0.063,195.85,195.84,129.94661485]
[1739339137253,0.063,195.85,195.84,130.94661485]
[1739339137461,0.063,195.85,195.84,246.94661485]
[1739339137768,0.063,195.85,195.84,290.85259669]
[1739339140357,0.063,195.85,195.84,292.1006073]
[1739339141264,0.063,195.87,195.86,1.25098]
[1739339141559,0.063,195.87,195.86,69.35635154]
[1739339142463,0.063,195.87,195.86,266.50733154]
[1739339142651,0.063,195.87,195.86,265.74191328]
[1739339142852,0.063,195.87,195.86,269.84751328]
[1739339143249,0.063,195.87,195.86,268.84751328]
[1739339143654,0.063,195.87,195.86,249.82810475]
[1739339143842,0.063,195.87,195.86,239.80149843]
[1739339144552,0.063,195.87,195.86,43.90149843]
[1739339146245,10.08960632,195.87,195.86,43.90149843]
[1739339146760,0.063,195.87,195.86,43.90149843]
[1739339150568,0.063,195.87,195.86,53.92810475]
[1739339151669,0.063,195.87,195.86,43.90149843]
[1739339154975,0.063,195.87,195.86,124.80149843]
[1739339158654,10.08960632,195.87,195.86,43.90149843]
[1739339159774,0.063,195.87,195.86,43.90149843]
[1739339161195,0.063,195.87,195.86,43.93149843]
[1739339161360,10.08960632,195.87,195.86,43.93149843]
[1739339162186,11.11060632,195.87,195.86,43.93149843]
[1739339163617,1.084,195.87,195.86,43.93149843]
[1739339164092,11.11060632,195.87,195.86,43.93149843]
[1739339165385,1.084,195.87,195.86,43.93149843]
[1739339165587,0.063,195.87,195.86,43.93149843]
[1739339166695,0.063,195.87,195.86,73.49220035]
[1739339166999,0.063,195.87,195.86,269.64318035]
[1739339167181,0.063,195.87,195.86,270.87751328]
[1739339167402,0.063,195.94,195.93,10.02660632]
[1739339167609,0.063,195.94,195.93,90.92660632]
[1739339168821,0.063,195.94,195.93,104.33845485]
[1739339168984,0.063,195.94,195.93,224.94421485]
[1739339169178,0.063,195.94,195.93,225.94421485]